[Event "FRA-ch Teams Top 16-B 2022"]
[Site "Chartres"]
[Date "2022.06.09"]
[Round "1.31"]
[White "Steil-Antoni, Fiona"]
[Black "Degraeve, Jean-Marc"]
[Result "1/2-1/2"]
[ECO "B07"]
[WhiteElo "2198"]
[BlackElo "2520"]
[Annotator "TA"]
[PlyCount "74"]
[EventDate "2022.06.09"]
[EventType "team-tourn"]
[EventCountry "FRA"]
[SourceTitle "playchess.com"]
[Source "ChessBase"]
[SourceQuality "1"]
[TimeControl "40/5400+30:1800+30"]

{[%evp 11,74,18,37,8,36,43,58,11,27,4,4,15,6,0,7,-9,1,5,16,11,10,0,0,-22,0,0,0,0,0,0,0,0,0,0,0,0,0,-6,0,0,0,0,56,0,0,0,130,54,72,0,45,45,55,0,0,0,0,0,0,0,0,0,0,0,0]} 1. e4 {[%emt 0:00:02]} d6 {[%emt 0:00:23][%cal Bd7d6,Bd6d5][%mdl 32]} 2. d4 {[%emt 0:00:17]} Nf6 {[%emt 0:00:07]} 3. Bd3 {[%emt 0:02:04]} e5 {[%emt 0:00:22]} 4. c3 {[%emt 0:01:31]} d5 {[%emt 0:01:34]} 5. dxe5 {[%emt 0:05:43]} Nxe4 {[%emt 0:01:38]} 6. Nf3 {[%emt 0:04:33]} Nc6 {[%emt 0:00:36]} 7. h3 {[%emt 0:02:46] 7.0-0 is a critical line. B07: Pirc Defence: Miscellaneous Systems.} Be7 {[%emt 0:09:45]} 8. O-O {[%emt 0:02:10]} O-O {[%emt 0:23:19] [#]} 9. Re1 $146 {[%emt 0:05:16]} (9. Qc2 $14) ({Predecessor:} 9. Qc2 Bf5 10. Nbd2 Nxd2 11. Bxd2 Bxd3 12. Qxd3 Qd7 13. Rae1 Rad8 14. Re2 a6 15. Rfe1 {0-1 (59) Velickovic,S (2399)-Nyback,T (2420) Belgrade 2002}) 9... Bf5 $11 {[%emt 0:03:28][%cal Bc8f5,Bf5g6,Bg6e4][%mdl 32]} 10. Nd4 {[%emt 0:08:38]} Bg6 {[%emt 0:01:56]} (10... Qd7 {feels hotter.} 11. Bb5 a6 12. Bxc6 bxc6 13. Nd2 Nxd2 14. Bxd2 c5) 11. Nxc6 {[%emt 0:09:51]} bxc6 {[%emt 0:00:24]} 12. Bxe4 {[%emt 0:02:29]} Bxe4 {[%emt 0:04:18]} 13. Nd2 {[%emt 0:00:42]} Bg6 {[%emt 0:07:00]} 14. Nb3 {[%emt 0:04:00]} a5 {[%emt 0:12:48][%cal Ba7a5,Ba5a4,Ba4b3,Bb3b2][%mdl 32]} 15. Be3 {[%emt 0:00:44]} Qb8 {[%emt 0:00:04]} 16. Qd2 {[%emt 0:03:02]} a4 {[%emt 0:00:21]} 17. Bc5 {[%emt 0:05:24]} axb3 {[%emt 0:03:46]} 18. Bxe7 {[%emt 0:00:18]} Re8 {[%emt 0:00:06]} 19. Ba3 {[%emt 0:04:36]} Rxa3 {[%emt 0:05:00]} 20. bxa3 {[%emt 0:00:02][%cal Bb2a3,Ba3a4,Ba4a5,Ba5a6,Ba6a7][%mdl 32]} b2 {[%emt 0:00:05]} 21. Rab1 {[%emt 0:00:26]} Bxb1 {[%emt 0:00:15]} 22. Rxb1 {[%emt 0:00:11]} Rxe5 {[%emt 0:00:11]} 23. Rxb2 {[%emt 0:03:27][%mdl 4096] Endgame KQR-KQR} Qe8 {[%emt 0:00:45]} 24. Qf4 {[%emt 0:02:34][%cal Of4e5] [#] Threatens to win with Qxe5!} f6 {[%emt 0:02:53]} 25. a4 {[%emt 0:04:10]} Qc8 {[%emt 0:02:20]} 26. a5 {[%emt 0:11:27]} Re1+ {[%emt 0:00:57]} 27. Kh2 {[%emt 0:00:09][%cal Oa5a6] aiming for a6!} Re4 {[%emt 0:00:14]} 28. Qc1 {[%emt 0:01:16]} h5 {[%emt 0:08:24]} (28... Qa8 $11) 29. Qb1 {[%emt 0:02:15]} (29. Qd1 $16) 29... Kf7 {[%emt 0:03:10]} 30. Rb7 {[%emt 0:01:21]} (30. Qd1 $16) 30... Qd7 {[%emt 0:06:18]} (30... Qf5 $5 {[%cal Rf5f4]}) 31. a6 {[%emt 0:04:56] [#] Strongly threatening a7.} Qd6+ $1 {[%emt 0:00:06]} 32. Kg1 {[%emt 0:01:48]} (32. g3 $1 $14 h4 33. a7) 32... Qe5 {[%emt 0:01:13] ...Re1+ is the strong threat. The position is equal.} 33. a7 {[%emt 0:02:31]} Re1+ {[%emt 0:01:17]} 34. Qxe1 {[%emt 0:00:03]} Qxe1+ {[%emt 0:00:06]} 35. Kh2 {[%emt 0:00:09]} Qe5+ {[%emt 0:00:07]} 36. Kg1 {[%emt 0:01:24]} Qe1+ {[%emt 0:01:25]} 37. Kh2 {[%emt 0:00:02]} Qe5+ {[%emt 0:00:38] Weighted Error Value: White=0.14 (very precise) /Black=0.16 (very precise)} 1/2-1/2

[Event "FRA-ch Teams Top 16-B 2022"]
[Site "Chartres"]
[Date "2022.06.09"]
[Round "1.32"]
[White "Guichard, Pauline"]
[Black "Adrian, Claude"]
[Result "1-0"]
[ECO "A59"]
[WhiteElo "2377"]
[BlackElo "2175"]
[Annotator "TA"]
[PlyCount "72"]
[EventDate "2022.06.09"]
[EventType "team-tourn"]
[EventCountry "FRA"]
[SourceTitle "playchess.com"]
[Source "ChessBase"]
[SourceQuality "1"]
[TimeControl "40/5400+30:1800+30"]

{[%evp 21,72,65,72,53,85,61,70,63,113,113,110,115,108,97,139,106,189,184,184,209,196,200,196,144,129,106,183,201,258,262,313,323,308,304,543,543,536,533,1315,1270,1283,1215,1110,1026,1172,1133,1468,1247,1722,1551,2395,1775,29993]} 1. d4 {[%emt 0:00:03]} Nf6 {[%emt 0:00:24]} 2. c4 {[%emt 0:00:07]} c5 {[%emt 0:00:04]} 3. d5 {[%emt 0:00:10]} b5 {[%emt 0:00:04]} 4. cxb5 {[%emt 0:00:09]} a6 {[%emt 0:00:04]} 5. bxa6 {[%emt 0:00:11]} g6 {[%emt 0:00:07]} 6. Nc3 {[%emt 0:00:19]} Bxa6 {[%emt 0:00:06]} 7. e4 {[%emt 0:00:13]} Bxf1 {[%emt 0:00:05]} 8. Kxf1 {[%emt 0:00:05]} d6 {[%emt 0:00:27]} 9. Nf3 {[%emt 0:00:14]} Bg7 {[%emt 0:00:15]} 10. g3 {[%emt 0:00:19]} O-O {[%emt 0:00:08]} 11. Kg2 {[%emt 0:00:05]} Nbd7 {[%emt 0:00:05]} 12. a4 {[%emt 0:00:18] The modern move. A59: Benko/Volga Gambit: White castles by hand.} Qb6 {[%emt 0:02:04]} 13. Re1 {[%emt 0:03:56]} Qb7 {[%emt 0:00:44]} 14. Ra3 {[%emt 0:13:40] [#] White is slightly better.} Ne8 $146 {[%emt 0:02:40]} (14... Ra6 $14) ({Predecessor:} 14... Rfb8 15. Nb5 Nb6 16. b3 Nfd7 17. Qe2 c4 18. bxc4 Rc8 19. Bg5 Nxc4 20. Ra2 Ndb6 {1-0 (45) Lalic,B (2486)-Bentley,J (2240) England 2013}) 15. Bg5 $16 {[%emt 0:09:38]} f6 {[%emt 0:03:39]} 16. Bd2 {[%emt 0:03:52] White is more active.} Nc7 {[%emt 0:01:30]} 17. Qc2 {[%emt 0:06:43]} Rab8 {[%emt 0:04:38]} 18. Bc1 {[%emt 0:04:50]} f5 {[%emt 0:03:56]} (18... Nb6 $16 {might work better.}) 19. exf5 $18 {[%emt 0:14:04]} Nxd5 {[%emt 0:02:29]} 20. Nxd5 {[%emt 0:07:09]} Qxd5 {[%emt 0:00:18]} 21. fxg6 {[%emt 0:00:26]} ({Stronger than} 21. Rxe7 Ne5 $11) 21... hxg6 {[%emt 0:10:21]} 22. Qxg6 {[%emt 0:03:24] Dancing on a razor blade.} ({Better is} 22. Rxe7 $18 Ne5 23. Bf4) 22... Ne5 $16 {[%emt 0:01:57]} 23. Qe4 {[%emt 0:03:55]} Qxe4 {[%emt 0:12:03]} (23... Qf7 $16) 24. Rxe4 $18 {[%emt 0:00:05]} Nxf3 {[%emt 0:07:24]} 25. Rxf3 {[%emt 0:00:06]} Rxf3 {[%emt 0:00:31]} 26. Kxf3 $16 {[%emt 0:00:06][%mdl 4096] Endgame KRB-KRB} Kf7 {[%emt 0:00:03]} 27. a5 {[%emt 0:03:16][%cal Ba4a5,Ba5a6,Ba6a7][%mdl 32]} Bxb2 $2 {[%emt 0:02:08]} (27... Bd4 28. Be3 Bxe3) 28. Bxb2 $18 {[%emt 0:01:30] White is clearly winning.} Rxb2 {[%emt 0:00:12] KR-KR} 29. Ra4 {[%emt 0:00:16] Prevents Ra2.} Ke6 {[%emt 0:04:49]} 30. a6 {[%emt 0:04:17] [#] Threatens to win with a7.} Rb8 {[%emt 0:02:48]} 31. a7 {[%emt 0:01:31]} Ra8 {[%emt 0:00:03]} 32. h4 {[%emt 0:01:25][%cal Bh2h4,Bh4h5][%mdl 32]} d5 {[%emt 0:02:01]} 33. h5 {[%emt 0:05:45]} Kf5 {[%emt 0:01:33]} 34. g4+ {[%emt 0:02:59]} Kg5 {[%emt 0:02:54]} 35. Ra6 e6 {[%emt 0:35:26]} 36. Rxe6 {[%emt 0:00:52] [#] Threatening mate with Kg3.} Rxa7 {[%emt 0:00:30] Weighted Error Value: White=0.09 (flawless) /Black=0.43} 1-0

[Event "FRA-ch Teams Top 16-B 2022"]
[Site "Chartres"]
[Date "2022.06.10"]
[Round "2.1"]
[White "Donchenko, Alexander"]
[Black "Kirk, Ezra"]
[Result "1-0"]
[ECO "E04"]
[WhiteElo "2599"]
[BlackElo "2446"]
[Annotator "TA"]
[PlyCount "112"]
[EventDate "2022.06.09"]
[EventType "team-tourn"]
[EventCountry "FRA"]
[SourceTitle "playchess.com"]
[Source "ChessBase"]
[SourceQuality "1"]
[TimeControl "40/5400+30:1800+30"]

{[%evp 14,112,50,45,52,47,33,61,56,64,41,68,71,76,81,33,31,36,31,35,31,33,45,25,51,45,60,21,73,73,77,26,26,27,22,10,11,7,26,25,37,0,0,0,0,0,7,7,14,0,0,-8,0,0,0,0,0,0,0,0,0,0,0,0,0,0,0,0,0,0,0,0,15,19,36,32,36,35,40,40,40,40,40,40,40,40,40,40,29961,29961,29961,5085,29962,29962,29962,29963,29962,29964,29955,29960,5787]} 1. d4 {[%emt 0:00:10]} Nf6 {[%emt 0:00:15]} 2. c4 {[%emt 0:00:07]} e6 {[%emt 0:00:12]} 3. Nf3 {[%emt 0:00:11][%cal Bg1f3,Bf3d2,Bd2c4][%mdl 32]} d5 {[%emt 0:00:13]} 4. g3 {[%emt 0:00:12]} dxc4 {[%emt 0:00:55]} 5. Bg2 {[%emt 0:00:09]} a6 {[%emt 0:00:14]} 6. O-O {[%emt 0:00:20]} Nc6 {[%emt 0:00:27]} 7. e3 {[%emt 0:00:21]} Rb8 {[%emt 0:00:48]} 8. Nfd2 {[%emt 0:00:21]} e5 {[%emt 0:01:21] E04: Open Catalan: 5 Nf3.} 9. Bxc6+ {[%emt 0:00:18]} bxc6 {[%emt 0:00:05]} 10. dxe5 {[%emt 0:00:05]} Ng4 {[%emt 0:00:15] White is slightly better.} 11. Nxc4 {[%emt 0:00:07]} Be6 {[%emt 0:02:38]} 12. Nbd2 {[%emt 0:01:37]} h5 {[%emt 0:00:31] And now ...h4 would win.} 13. f3 $1 {[%emt 0:00:27]} Rb4 {[%emt 0:02:30][%cal Oh5h4] [#]} 14. fxg4 {[%emt 0:00:32]} ({White should try} 14. Qe2 $1 $16 h4 15. fxg4 hxg3 16. b3 (16. hxg3 Bxc4 17. Nxc4 Qd5 $15) (16. Qf3 Bd5 $17) 16... Rxh2 17. Qf3) 14... Bxc4 $14 {[%emt 0:01:00]} 15. Nxc4 {[%emt 0:00:07]} Qxd1 {[%emt 0:00:47]} 16. Rxd1 {[%emt 0:00:05]} Rxc4 {[%emt 0:00:05]} 17. Bd2 {[%emt 0:00:06]} Rxg4 {[%emt 0:00:05]} 18. Ba5 {[%emt 0:03:30] [#]} (18. Rac1 $5 {[%cal Rc1c6]}) 18... Be7 $146 {[%emt 0:02:44]} ({Predecessor:} 18... Bc5 19. Kf2 Bb6 20. Bc3 Rg6 21. Kf3 Re6 22. Rd3 O-O 23. Rad1 f6 24. Rd8 h4 25. gxh4 fxe5+ {1-0 (40) Ding,L (2777)-Mamedyarov,S (2799) Huaian 2017}) 19. Bxc7 {[%emt 0:16:51]} Rh6 {[%emt 0:09:52]} 20. Kg2 {[%emt 0:14:03]} h4 {[%emt 0:15:09]} (20... Rb4 $11) 21. Rd4 $16 {[%emt 0:14:03]} Rg5 {[%emt 0:12:42]} 22. g4 {[%emt 0:03:08] White is more active.} (22. Rad1 $16) 22... c5 $1 $11 {[%emt 0:03:52]} 23. Re4 {[%emt 0:05:38]} Rc6 {[%emt 0:07:17]} 24. Ba5 {[%emt 0:01:05]} Re6 {[%emt 0:00:55]} 25. Kf3 {[%emt 0:03:40] With the idea Bc3.} Rgxe5 {[%emt 0:03:14]} 26. Rxe5 {[%emt 0:00:06]} Rxe5 {[%emt 0:00:06][%mdl 4096] Endgame KRB-KRB} 27. e4 {[%emt 0:02:45]} (27. Bc3 $5 {[%cal Rc3e5]} Rd5 28. Ke2 $11 (28. Bxg7 Rd2 $11)) 27... Re6 {[%emt 0:09:25]} 28. Bc3 {[%emt 0:04:23]} Bf6 {[%emt 0:07:15]} 29. Rc1 {[%emt 0:00:21]} Bxc3 {[%emt 0:03:05]} 30. Rxc3 {[%emt 0:00:03] KR-KR} Re5 {[%emt 0:00:10]} 31. Rb3 {[%emt 0:03:56]} c4 {[%emt 0:05:03]} 32. Rc3 {[%emt 0:07:21]} Rb5 {[%emt 0:01:13]} 33. Rc2 {[%emt 0:00:19]} Kd7 {[%emt 0:03:29]} 34. Ke3 {[%emt 0:00:05]} Rb4 {[%emt 0:04:18]} 35. g5 {[%emt 0:03:59]} Ke6 {[%emt 0:01:02]} 36. a3 {[%emt 0:03:20]} Rb3+ {[%emt 0:02:49]} 37. Kd4 {[%emt 0:02:38]} c3 {[%emt 0:00:20]} 38. bxc3 {[%emt 0:00:43]} Rxa3 {[%emt 0:01:07]} 39. Rb2 {[%emt 0:00:02]} Ra1 {[%emt 0:00:54]} 40. Rb6+ {[%emt 0:00:16]} Ke7 {[%emt 0:00:54]} 41. g6 {[%emt 0:31:59]} fxg6 {[%emt 0:07:33]} 42. Rxg6 {[%emt 0:00:00]} Kf7 {[%emt 0:00:04]} 43. Rg4 {[%emt 0:00:00]} a5 {[%emt 0:05:24][%cal Ba6a5,Ba5a4][%mdl 32]} 44. Rxh4 {[%emt 0:00:00]} a4 {[%emt 0:00:27]} 45. Rh8 {[%emt 0:00:00]} a3 {[%emt 0:00:42]} 46. Ra8 {[%emt 0:00:00]} a2 {[%emt 0:00:25] ...Rd1+ is the strong threat.} 47. Kc4 {[%emt 0:00:00]} Ke6 {[%emt 0:05:01]} 48. Kb3 {[%emt 0:00:00]} Re1 $1 {[%emt 0:00:15]} 49. Rxa2 {[%emt 0:00:00] Hoping for Rd2.} Rxe4 {[%emt 0:00:08]} 50. Rd2 {[%emt 0:00:00] Threatens to win with c4.} g5 $2 {[%emt 0:12:10][%mdl 8192] [#] A mistake that costs the game.} (50... Rh4 $14) 51. c4 $1 {[%emt 0:00:00][%cal Bc3c4,Bc4c5][%mdl 32]} Kf5 {[%emt 0:00:59]} 52. Kb4 {[%emt 0:00:00]} (52. c5 $142 Kf6 53. c6 Re3+ 54. Kb4 Re1 55. Rc2 Rb1+ 56. Ka4 Ra1+ 57. Kb5 Rb1+ 58. Ka6 Ra1+ 59. Kb7 Rb1+ 60. Ka7 Ra1+ 61. Kb7 Rb1+ 62. Kc7) 52... Kf4 {[%emt 0:01:29]} 53. Kb5 {[%emt 0:00:00] White mates.} Ke3 {[%emt 0:00:29]} 54. Rg2 {[%emt 0:00:00]} Re5+ {[%emt 0:00:42]} 55. c5 {[%emt 0:00:00]} Kd4 {[%emt 0:00:33]} 56. Kb6 {[%emt 0:00:00]} Kd5 {[%emt 0:01:55] Weighted Error Value: White=0.06 (flawless) /Black=0.33} 1-0

[Event "FRA-ch Teams Top 16-B 2022"]
[Site "Chartres"]
[Date "2022.06.10"]
[Round "2.2"]
[White "Favarel, Julien"]
[Black "Brunner, Nicolas"]
[Result "1/2-1/2"]
[ECO "B53"]
[WhiteElo "2312"]
[BlackElo "2454"]
[Annotator "TA"]
[PlyCount "97"]
[EventDate "2022.06.09"]
[EventType "team-tourn"]
[EventCountry "FRA"]
[SourceTitle "playchess.com"]
[Source "ChessBase"]
[SourceQuality "1"]
[TimeControl "40/5400+30:1800+30"]

{[%evp 9,97,0,0,0,0,0,9,-23,-30,-20,-31,-25,-27,-18,0,-1,0,0,0,0,20,-16,0,0,0,-4,0,-7,-13,-12,0,0,0,0,0,0,0,0,0,0,0,0,0,0,22,20,20,16,20,20,68,17,73,73,85,67,83,0,89,81,81,81,74,66,85,50,91,93,103,103,172,34,30,12,12,12,12,3,3,3,3,3,4,4,4,0,11,11,12,11]} 1. e4 {[%emt 0:01:03]} c5 {[%emt 0:00:07]} 2. Nf3 {[%emt 0:00:11]} d6 {[%emt 0:00:04]} 3. d4 {[%emt 0:00:08]} cxd4 {[%emt 0:00:05]} 4. Qxd4 {[%emt 0:00:08]} Nf6 {[%emt 0:00:25]} 5. Bb5+ {[%emt 0:01:24]} Bd7 {[%emt 0:01:12]} 6. c4 {[%emt 0:02:55] B53: Sicilian: 2...d6: Lines with Qxd4.} g6 {[%emt 0:01:03]} 7. O-O {[%emt 0:06:31]} Bg7 {[%emt 0:00:08]} 8. h3 {[%emt 0:02:38]} O-O {[%emt 0:00:14]} 9. Nc3 {[%emt 0:09:05]} a6 {[%emt 0:01:26]} 10. Bxd7 {[%emt 0:00:40]} Nbxd7 {[%emt 0:00:27]} 11. Qd3 {[%emt 0:04:41]} Nc5 {[%emt 0:03:17]} 12. Qe2 {[%emt 0:00:11]} b5 {[%emt 0:02:34] [#]} 13. e5 $146 {[%emt 0:04:16]} ({Predecessor:} 13. cxb5 axb5 14. e5 dxe5 15. Nxe5 b4 16. Nc6 Qd6 17. Nxe7+ Kh8 18. Nb5 Qa6 19. Qc4 {1-0 (47) Nepomniachtchi,I (2717)-Inarkiev,E (2680) Khanty-Mansiysk 2013}) 13... dxe5 {[%emt 0:05:43]} 14. Nxe5 {[%emt 0:02:02]} bxc4 {[%emt 0:06:23]} 15. Qxc4 {[%emt 0:06:33]} Rc8 {[%emt 0:04:16][%cal Oc5e4]} 16. Rd1 {[%emt 0:16:57]} Qc7 {[%emt 0:02:53]} 17. Nd3 {[%emt 0:13:37]} Nxd3 {[%emt 0:11:25]} 18. Qxc7 {[%emt 0:00:16]} Rxc7 {[%emt 0:00:04]} 19. Rxd3 {[%emt 0:00:08]} Rfc8 {[%emt 0:05:51]} 20. Bf4 {[%emt 0:11:11]} Rc4 {[%emt 0:08:48]} 21. Be3 {[%emt 0:03:08]} e6 {[%emt 0:16:53]} 22. Rad1 {[%emt 0:01:29]} Ne8 {[%emt 0:01:03] Against Rd6} 23. Rd7 {[%emt 0:08:40]} Bxc3 {[%emt 0:02:13]} 24. bxc3 {[%emt 0:00:03]} Rxc3 {[%emt 0:00:14]} 25. Ra7 {[%emt 0:00:45]} R3c6 {[%emt 0:01:10]} 26. Rdd7 {[%emt 0:00:52]} R8c7 {[%emt 0:06:49]} 27. Rd8 {[%emt 0:01:31]} Rc8 $1 {[%emt 0:01:54]} 28. Rxc8 {[%emt 0:00:17]} Rxc8 {[%emt 0:00:04]} 29. Rxa6 $11 {[%emt 0:00:07][%mdl 4096] Endgame KRB-KRN} Nf6 {[%emt 0:01:33]} (29... Kf8 $11 {might be stronger.}) 30. a4 {[%emt 0:00:41]} ({White should try} 30. Bh6 $1 $14) 30... Nd5 {[%emt 0:00:30] [#]} (30... Kf8 $11 {remains equal.}) 31. Bh6 $1 $16 {[%emt 0:00:48]} Nb4 {[%emt 0:06:43]} 32. Rb6 {[%emt 0:00:24]} Nd5 {[%emt 0:00:30]} 33. Ra6 {[%emt 0:00:21]} Nb4 $1 {[%emt 0:00:05]} 34. Ra7 {[%emt 0:00:10]} Nc6 {[%emt 0:00:15]} 35. Rb7 {[%emt 0:00:12]} Ra8 {[%emt 0:00:23]} 36. Rc7 {[%emt 0:00:14]} Na5 {[%emt 0:07:25]} 37. h4 {[%emt 0:01:34] White is more active.} e5 {[%emt 0:02:41]} 38. Rc5 {[%emt 0:01:01]} Nb7 {[%emt 0:01:23]} 39. Rxe5 {[%emt 0:01:02]} Nd6 {[%emt 0:00:03] [#]} (39... f5 $16) 40. Rd5 {[%emt 0:01:43]} (40. a5 $1 $18) 40... Nf5 $14 {[%emt 0:00:16]} 41. Bg5 {[%emt 0:07:47] Threatens to win with Rd8+.} Rxa4 {[%emt 0:00:37] The position is equal.} 42. Bf6 {[%emt 0:00:14][%cal Rd5d8]} Ra8 {[%emt 0:00:36]} 43. h5 {[%emt 0:03:05]} Ng7 {[%emt 0:03:17]} 44. h6 {[%emt 0:01:57]} Nf5 {[%emt 0:05:21]} 45. Bg5 {[%emt 0:00:30]} f6 {[%emt 0:01:41]} 46. Bxf6 {[%emt 0:01:38] Strongly threatening Bg5.} Nxh6 {[%emt 0:00:05]} 47. Rd7 {[%emt 0:00:55]} Nf7 {[%emt 0:00:32]} 48. Rc7 {[%emt 0:02:01]} Re8 {[%emt 0:04:06]} 49. f3 {[%emt 0:01:12] Weighted Error Value: White=0.14 (very precise) /Black=0.09 (flawless)} 1/2-1/2

[Event "FRA-ch Teams Top 16-B 2022"]
[Site "Chartres"]
[Date "2022.06.10"]
[Round "2.4"]
[White "Ternault, Mathieu"]
[Black "Hamitevici, Vladimir"]
[Result "0-1"]
[ECO "D02"]
[WhiteElo "2367"]
[BlackElo "2482"]
[Annotator "TA"]
[PlyCount "74"]
[EventDate "2022.06.09"]
[EventType "team-tourn"]
[EventCountry "FRA"]
[SourceTitle "playchess.com"]
[Source "ChessBase"]
[SourceQuality "1"]
[TimeControl "40/5400+30:1800+30"]

{[%evp 9,74,-6,-6,-7,0,0,0,-8,-4,-20,0,-14,-20,-93,-101,-102,-100,-146,-52,-177,-52,-170,-161,-153,-166,-186,-193,-246,-216,-214,-157,-184,-132,-174,-197,-187,-143,-167,-121,-135,-102,-102,-106,-107,-104,-104,-103,-103,-103,-104,-104,-106,-87,-135,-125,-110,-45,-111,0,0,0,-5804,-5733,-1360,-1297,-5727,-1532]} 1. d4 {[%emt 0:00:03]} d5 {[%emt 0:04:49]} 2. Nf3 {[%emt 0:00:32]} c6 {[%emt 0:02:38]} 3. g3 {[%emt 0:03:57]} Nf6 {[%emt 0:04:36]} 4. Bg2 {[%emt 0:00:20]} Bf5 {[%emt 0:00:07]} 5. Nbd2 {[%emt 0:04:25][%cal Bb1d2,Bd2f3,Bf3e5][%mdl 32]} h6 {[%emt 0:00:32]} 6. c4 {[%emt 0:02:38] D02: 1 d4 d5 2 Nf3 sidelines, including 2...Nf6 3 g3 and 2...Nf6 3 Bf4.} e6 {[%emt 0:00:06]} 7. Ne5 {[%emt 0:07:05]} Nbd7 {[%emt 0:12:32]} 8. Nxd7 {[%emt 0:06:15] The position is equal.} Qxd7 {[%emt 0:00:46] [#]} 9. Nf3 $146 {[%emt 0:01:20]} ({Predecessor:} 9. O-O Be7 10. b3 O-O 11. Bb2 Rfd8 12. e3 b5 13. c5 a5 14. a4 b4 15. f3 {1-0 (66) Krasenkow,M (2633)-Cramling,P (2525) Stockholm 2014}) 9... dxc4 {[%emt 0:05:04]} 10. Ne5 {[%emt 0:16:34]} Bb4+ {[%emt 0:00:07]} 11. Bd2 {[%emt 0:00:04]} (11. Kf1 $11 {keeps the balance.} Qc8 12. Nxc4) 11... Qxd4 $17 {[%emt 0:03:35]} 12. Bxb4 {[%emt 0:00:19]} Qxe5 {[%emt 0:08:04]} 13. O-O {[%emt 0:01:06]} (13. Bc3 $142 Qb5 14. Qd6) 13... Be4 {[%emt 0:14:58]} (13... Nd5 $17 14. Ba3 O-O-O) 14. f3 {[%emt 0:12:44]} (14. Bc3 $1 $15 Qf5 15. f3) 14... Nd5 {[%emt 0:02:48]} ({Better is} 14... Qxb2 $19 15. Qd6 Nd5) 15. Ba3 {[%emt 0:09:51]} ({White should try} 15. Bc5 $15 Bg6 16. Bd4) 15... Ne3 {[%emt 0:01:34]} 16. Qd2 {[%emt 0:02:55]} Nxf1 {[%emt 0:03:25]} 17. Rxf1 {[%emt 0:04:14]} Bg6 {[%emt 0:04:45] aiming for ...Rd8.} 18. Rd1 {[%emt 0:05:15]} (18. f4 $142 Qc7 19. Qd4) 18... Qc7 {[%emt 0:02:36] Strongly threatening ...Rd8.} 19. Qc3 {[%emt 0:01:36]} f6 {[%emt 0:12:39]} 20. Qxc4 {[%emt 0:03:22]} Bf7 {[%emt 0:00:04]} (20... Kf7 $19 21. Bd6 Qd7) 21. Bd6 {[%emt 0:05:25]} Qb6+ {[%emt 0:00:45]} 22. Bc5 {[%emt 0:00:15] [#]} e5 $1 {[%emt 0:01:51]} 23. Qc2 {[%emt 0:06:37]} Qc7 {[%emt 0:02:05]} (23... Qa5 $19 {Hoping for ...Rd8.} 24. f4 Rd8) 24. Bd6 {[%emt 0:00:15]} Qa5 {[%emt 0:00:29]} 25. f4 {[%emt 0:02:27][%cal Og2c6] White threatens Bxc6+! and mate.} Rd8 $1 {[%emt 0:02:13][%cal Od8d6]} 26. fxe5 {[%emt 0:01:53]} (26. Bxc6+ $2 bxc6 27. Qxc6+ Rd7 $19) 26... fxe5 {[%emt 0:00:09]} 27. b4 {[%emt 0:01:07] Bxc6+ is the strong threat.} (27. Bxc6+ $2 bxc6 28. Qxc6+ Rd7 $19) 27... Qb6+ {[%emt 0:00:53]} (27... Qxa2 $6 28. Bxc6+ bxc6 29. Qxc6+ Rd7 30. Bc5 $11) 28. Kh1 {[%emt 0:00:42] [#]} Rxd6 $1 {[%emt 0:02:20]} 29. Rxd6 {[%emt 0:00:04][%cal Ob4b5]} O-O {[%emt 0:00:22]} ({But not} 29... Qxb4 $6 30. Bxc6+ $1 bxc6 31. Qxc6+ Kf8 32. Rd8+ Ke7 33. Qd7+ (33. Rxh8 Qe1+ 34. Kg2 Qxe2+ 35. Kg1 Qd1+ 36. Kf2 Qd4+ 37. Ke1 Qg1+ 38. Kd2 Qxh2+ 39. Kd1 Qg1+ 40. Kd2 Qh2+ 41. Kd1 Qg1+ 42. Kd2 Qh2+ $15) 33... Kf6 34. Qc6+ (34. Rxh8 Qe1+ 35. Kg2 Qxe2+ 36. Kg1 Qe1+ 37. Kg2 Qe4+ 38. Kf2 Qc2+ 39. Ke1 Qe4+ 40. Kf2 Qc2+ 41. Ke1 Qe4+ 42. Kf2 $11) 34... Ke7 35. Rd7+ (35. Rxh8 Qe1+ 36. Kg2 Qxe2+ 37. Kg1 Qd1+ 38. Kf2 Qd4+ 39. Ke1 Qg1+ 40. Kd2 Qxh2+ 41. Kd1 Qg1+ 42. Kd2 Qh2+ 43. Kd1 Qxg3 $17) 35... Kf8 36. Rd8+ Ke7 $11) 30. Qd2 {[%emt 0:01:03]} a5 {[%emt 0:03:41]} 31. a3 {[%emt 0:00:42]} (31. bxa5 $142 Qb1+ 32. Qd1 Qxa2 33. Rd7) 31... axb4 {[%emt 0:00:28]} 32. axb4 {[%emt 0:00:34]} Ra8 {[%emt 0:01:07]} ({Black should play} 32... Qf2 $17 33. e3 Qxd2 34. Rxd2 Be6) 33. Be4 {[%emt 0:00:12] [#]} (33. h4 $1 $15) 33... Bc4 {[%emt 0:04:13]} ({Reject} 33... Ra1+ 34. Kg2 Qg1+ 35. Kh3 Qf1+ 36. Kh4 $15) (33... Qf2 $1 $17 {[%cal Rf2f1]} 34. Qd1 (34. Rd8+ $2 Be8 $19) 34... Rf8) 34. Kg2 $11 {[%emt 0:00:54]} Rf8 $36 {[%emt 0:00:12][%mdl 2048] Black is more active.} 35. Rg6 $2 {[%emt 0:00:43][%mdl 8192]} (35. Bd5+ $11 Bxd5+ 36. Qxd5+ cxd5 37. Rxb6) 35... Qf2+ $19 {[%emt 0:00:21] Black is clearly winning.} 36. Kh3 {[%emt 0:00:03]} Bxe2 {[%emt 0:00:46] ( -> ...Bf1+)} 37. Qa2+ {[%emt 0:00:57]} Kh8 {[%emt 0:00:26] Weighted Error Value: White=0.58/Black=0.21 (precise)} 0-1